Cogmind - Beta 12 @@@ ROGUE MODE // 2023.03.05 @ 02:37:43 Player: Trione Result: Destroyed by H-66 Slayer with Gauss Rifle Performance ------------- Evolutions (4) 2000 Regions Visited (8) 1600 Robots Destroyed (184) 920 Value Destroyed (6943) 6943 Prototype IDs (3) 60 Alien Tech Used (0) 0 Bonus (3209) 3209 TOTAL SCORE: 14732 Bonus ------- Triggered High Security 500 High Alert Combat Kills 2309 Follower Combat Kills 248 Entered Garrisons 200 Friendly Fire -48 Cogmind --------- Core Integrity 0/850 Matter 205/300 Energy 99/100 System Corruption 3% Temperature Cool (0) Movement Core (50) Location -6/Factory Parts ------- > --- POWER (1) -------- (None) > --- PROPULSION (3) --- (None) > --- UTILITY (9) ------ Hacking Suite > --- WEAPON (2) ------- (None) > --- INVENTORY (5) ---- Transmission Jammer Heavy Linear Accelerator Heavy Missile Launcher Micro-nuke Launcher Peak State ------------ > --- POWER ------------ Fission Core > --- PROPULSION ------- Heavy Siege Treads Wheel > --- UTILITY ---------- Cargo Storage Unit Advanced Sensor Array Advanced Signal Interpreter Advanced Targeting Computer Transmission Jammer Hardened Heavy Armor Plating Hacking Suite > --- WEAPON ----------- Flak Gun Micro-nuke Launcher > --- INVENTORY -------- Fission Core Wheel Armored Wheel Armored Wheel Improved Heat Sink High-capacity Battery Energy Well High-capacity Matter Pod Advanced Weight Redist. System Improved Sensor Array Transport Network Coupler Trap Extractor Improved Trap Extractor Phase Cannon Heavy Plasma Cannon Coil Gun Flak Cannon Hardcell Cannon Hypervelocity Mass Driver Heavy Linear Accelerator Heavy Linear Accelerator Advanced EMP Blaster Proton Missile Launcher Heavy Missile Launcher Improved Datajack Power Maul Great Axe [Rating: 73] Favorites ----------- Power Micro Nuclear Core Engine Ion Engine Power Core Micro Nuclear Core Reactor Light Antimatter Reactor Propulsion Armored Wheel Treads Heavy Siege Treads Wheel Armored Wheel Utility Advanced Targeting Computer Device Improved Heat Sink Storage Cargo Storage Unit Processor Advanced Targeting Computer Hackware Hacking Suite Protection Improved Medium Armor Plating Weapon Autogun Energy Gun Heavy Laser Energy Cannon Ion Cannon Ballistic Gun Autogun Ballistic Cannon Gauss Cannon Launcher Advanced EMP Blaster Special Weapon Mining Laser Impact Weapon Hammer Slashing Weapon Great Axe Special Melee Weapon Improved Datajack Build | -11 -10 -10 -10 -9 -8 -7 -7 -6 ------- Run | Jun Mat Min Exi Min Mat Fac Gar Fac Slots Evolved 8 | . . . . . 4 2 . 2 Power . | . . . . . . . . . Propulsion 1 | . . . . . 1 . . . Utility 7 | . . . . . 3 2 . 2 Weapon . | . . . . . . . . . Parts Attached 272 | 6 12 7 2 . 70 50 56 69 Power 13 | 1 . 1 . . 5 1 3 2 Engine 6 | 1 . 1 . . 4 . . . Core 6 | . . . . . 1 1 2 2 Reactor 1 | . . . . . . . 1 . Propulsion 49 | 2 2 1 . . 20 2 6 16 Treads 10 | . . . . . 5 . 1 4 Leg . | . . . . . . . . . Wheel 39 | 2 2 1 . . 15 2 5 12 Hover . | . . . . . . . . . Flight . | . . . . . . . . . Utility 82 | 1 3 . 2 . 14 27 18 17 Device 32 | . 1 . . . 3 8 10 10 Storage 15 | 1 2 . 2 . 5 2 1 2 Processor 6 | . . . . . 1 4 . 1 Hackware 5 | . . . . . . 3 1 1 Protection 24 | . . . . . 5 10 6 3 Artifact . | . . . . . . . . . Weapon 128 | 2 7 5 . . 31 20 29 34 Energy Gun 8 | 1 . . . . 7 . . . Energy Cannon 8 | . . . . . 1 3 3 1 Ballistic Gun 46 | 1 5 3 . . 9 5 9 14 Ballistic Cannon 11 | . . . . . . 4 1 6 Launcher 27 | . 2 1 . . 8 2 6 8 Special Weapon 2 | . . 1 . . 1 . . . Impact Weapon 3 | . . . . . 3 . . . Slashing Weapon 18 | . . . . . 2 6 5 5 Piercing Weapon . | . . . . . . . . . Special Melee Weapon 5 | . . . . . . . 5 . Unidentified Prototypes 3 | . . . . . 1 . 1 1 Parts Lost 66 | . . 1 . . 23 2 18 22 Power 6 | . . . . . 2 1 . 3 Propulsion 20 | . . . . . 7 . 5 8 Utility 20 | . . . . . 5 1 8 6 Weapon 20 | . . 1 . . 9 . 5 5 Highest Loss Streak 12 | . . 1 . . 4 1 12 11 To Critical Strikes 1 | . . . . . 1 . . . Average Slot Usage (%) 90 | . 90 100 100 100 93 91 86 87 Engine 3 | . 14 14 14 14 8 1 . . Core 3 | . . . . . . 5 6 4 Wheel 22 | . 28 28 28 28 25 23 21 18 Device 9 | . 5 14 12 . 4 4 14 17 Storage 10 | . 14 14 15 28 21 9 6 6 Processor 11 | . . . . . 5 18 15 12 Hackware 1 | . . . . . . . 1 5 Protection 6 | . . . . . 8 11 4 4 Energy Gun 1 | . 5 . . . 5 . . . Ballistic Gun 8 | . 21 27 28 28 5 4 6 8 Ballistic Cannon 1 | . . . . . . 2 1 . Slashing Weapon 2 | . . . . . 3 5 1 2 Naked Turns . | . . . . . . . . . Heaviest Build 272 | 12 32 32 55 55 267 272 225 183 Greatest Support 79 | 26 26 26 26 26 42 36 79 45 Greatest Overweight (x) 10 | . 1 1 2 2 7 7 7 10 Average Overweight (x) 3 | . . 1 1 2 3 6 3 3 Largest Inventory Capacity 35 | 8 15 15 20 20 35 35 35 30 Average Capacity 28 | 7 14 15 18 20 26 34 30 29 Most Carried 35 | 4 15 15 20 20 35 35 35 30 Average Carried 26 | 2 11 14 17 20 22 34 28 27 Final Capacity 35 | 8 15 15 20 20 35 35 30 5 Final Carried 35 | 4 15 14 20 20 35 35 30 5 Class Distribution -------------------- 75% | Hauler-Mutant 20% | Mutant 3% | Scavenger-Mutant Dominant Class ---------------- Mutant | -10/Materials Mutant | -10/Mines Mutant | -10/Exiles Mutant | -9/Mines Hauler-Mutant | -8/Materials Hauler-Mutant | -7/Factory Hauler-Mutant | -7/Garrison Hauler-Mutant | -6/Factory Resources | -11 -10 -10 -10 -9 -8 -7 -7 -6 ----------- Run | Jun Mat Min Exi Min Mat Fac Gar Fac Matter Collected 6132 | 216 554 237 130 . 1038 1241 1141 1575 Remotely . | . . . . . . . . . Salvage Created 7769 | . 696 320 . . 2008 1412 1037 2296 Parts 341 | . 39 15 . . 89 65 40 93 Haulers Intercepted 6 | . 2 . . . 1 2 . 1 Recyclers Shooed 8 | . . 3 . . 1 3 . 1 Parts Field Recycled . | . . . . . . . . . Retrieved Matter . | . . . . . . . . . Parts Self-Destructed . | . . . . . . . . . Prevented . | . . . . . . . . . Kills | -11 -10 -10 -10 -9 -8 -7 -7 -6 ------- Run | Jun Mat Min Exi Min Mat Fac Gar Fac Combat Hostiles Destroyed 137 | . 10 6 . . 29 19 25 48 Melee 7 | . . . . . 3 2 . 2 Guns 55 | . 7 4 . . 16 5 9 14 Cannons 26 | . . . . . 2 9 2 13 AOE 45 | . 3 2 . . 6 2 13 19 Classes Destroyed 19 | . 7 . . . 3 4 1 4 Worker 7 | . 2 . . . 2 2 . 1 Builder 11 | . 2 . . . 2 2 . 5 Hauler 6 | . 2 . . . 1 2 . 1 Recycler 17 | . 3 3 . . 4 4 . 3 Carrier 2 | . . . . . . . . 2 Mechanic 1 | . . . . . . . . 1 Operator 2 | . 1 . . . 1 . . . Watcher 1 | . . . . . . 1 . . Swarmer 41 | . 6 6 . . 6 . 12 11 Saboteur 1 | . . . . . . . . 1 Grunt 56 | . 4 . . . 16 8 6 22 Brawler 3 | . . . . . . 1 2 . Duelist 7 | . . . . . . 1 . 6 Protector 3 | . . . . . . . . 3 Sentry 9 | . . . . . 4 . 2 3 Specialist 2 | . . . . . 2 . . . Hunter 6 | . . . . . 1 3 2 . Programmer 8 | . . . . . . 6 . 2 Behemoth 1 | . . . . . . . 1 . Best Kill Streak 12 | . 12 4 . . 6 7 9 11 Combat Bots Only 9 | . 8 3 . . 4 4 9 6 Max Kills in Single Turn 3 | . 2 2 . . 3 2 2 3 Gunslinging . | . . . . . . . . . Exploded 3 | . 1 2 . . 3 2 2 3 Melee 1 | . . . . . 1 1 . 1 Uniques/NPCs Destroyed . | . . . . . . . . . Combat | -11 -10 -10 -10 -9 -8 -7 -7 -6 -------- Run | Jun Mat Min Exi Min Mat Fac Gar Fac Damage Taken 11578 | . 362 208 . . 2725 1595 2448 4240 Core 1923 | . 109 49 . . 520 148 234 863 Absorbed by Shields . | . . . . . . . . . Reduced by Siege Mode 332 | . . . . . . . 246 86 Core Remaining (%) 46 | 100 . . . 36 5 . 45 . Volleys Fired 468 | . 46 28 . . 112 69 81 132 Largest 2 | . 2 2 . . 2 2 2 2 Hottest 131 | . 60 100 . . 128 113 93 131 Shots Fired 775 | . 83 50 . . 200 125 96 221 Gun 550 | . 74 44 . . 176 69 40 147 Cannon 164 | . . . . . 10 55 41 58 Launcher 58 | . 9 4 . . 13 1 15 16 Special 3 | . . 2 . . 1 . . . Kinetic 568 | . 68 44 . . 103 96 53 204 Thermal 111 | . 6 2 . . 57 24 21 1 Explosive 15 | . . . . . . . 5 10 Electromagnetic 81 | . 9 4 . . 40 5 17 6 Robot Hit Streak 55 | . 16 5 . . 17 11 22 55 Robot Miss Streak 9 | . 3 5 . . 3 2 4 9 Penetration Max 2 | . . . . . . 1 1 2 Secondary Targets 3 | . 1 . . . . . . 2 Max Gunslinging Chain 1 | . 1 . . . . . . 1 Shots Hit Robots 564 | . 48 22 . . 160 92 67 175 Core Hits 421 | . 28 9 . . 69 43 73 199 Critical Kills 9 | . . . . . 4 2 . 3 Critical Parts Destroyed 2 | . . . . . . 1 . 1 Critical Strikes 21 | . . . . . 6 6 2 7 Burn 1 | . . . . . 1 . . . Destroy 10 | . . . . . 2 3 . 5 Blast 2 | . . . . . . . 1 1 Corrupt 1 | . . . . . 1 . . . Smash 2 | . . . . . 2 . . . Sever 5 | . . . . . . 3 1 1 Melee Attacks 112 | . . . . . 27 47 25 13 Impact 17 | . . . . . 17 . . . Slashing 92 | . . . . . 10 47 22 13 Piercing . | . . . . . . . . . Sneak Attacks 7 | . . . . . 3 . 3 1 Combat Hostiles . | . . . . . . . . . Follow-up Attacks 2 | . . . . . . 2 . . Damage Inflicted 18250 | . 1011 541 . . 3727 2793 2894 7284 Guns 7313 | . 728 358 . . 1963 958 774 2532 Cannons 2977 | . . . . . 262 1002 508 1205 Explosions 6030 | . 283 183 . . 769 414 1086 3295 Melee 1930 | . . . . . 733 419 526 252 Ramming . | . . . . . . . . . Kinetic 8354 | . 695 358 . . 1148 1415 1001 3737 Thermal 1979 | . 33 63 . . 831 484 301 267 Explosive 3316 | . . . . . . 290 362 2664 Electromagnetic 2671 | . 283 120 . . 1015 185 704 364 Impact 410 | . . . . . 410 . . . Slashing 1520 | . . . . . 323 419 526 252 Piercing . | . . . . . . . . . Highest Corruption 5 | . . . . . . 5 3 4 Average Corruption 2 | . . . . . . 2 2 1 Corruption Purged 10 | . . . . . . 5 . 5 Corruption Blocked . | . . . . . . . . . Effects 107 | . . . . . . 29 57 21 Message Errors 26 | . . . . . . 5 15 6 Matter Fused 28 | . . . . . . 10 12 6 Heat Flow Errors 12 | . . . . . . 4 7 1 Energy Discharges 9 | . . . . . . 3 5 1 Parts Rejected 3 | . . . . . . . 2 1 Data Loss (minor) 18 | . . . . . . 2 13 3 Data Loss (major) 5 | . . . . . . 3 . 2 Misfires 1 | . . . . . . . 1 . Alerts 1 | . . . . . . . 1 . Weapon Failures 4 | . . . . . . 2 1 1 Overload Shots . | . . . . . . . . . Overflow Damage 414 | . 18 . . . 111 69 54 162 Projectiles 20 | . . . . . 5 12 . 3 Explosions 215 | . 18 . . . . 44 54 99 Melee 179 | . . . . . 106 13 . 60 Knockbacks 38 | . . . . . . 7 . 31 Impact . | . . . . . . . . . Kinetic 35 | . . . . . . 6 . 29 Secondary 3 | . . . . . . 1 . 2 Self-Inflicted Damage 236 | . . . . . 42 146 17 31 Shots 8 | . . . . . 2 2 2 2 Rammed . | . . . . . . . . . Targets Rammed . | . . . . . . . . . Kicked . | . . . . . . . . . Crushed . | . . . . . . . . . Highest Temperature 284 | . 58 16 . . 284 263 180 241 Average Temperature 56 | . 20 10 . . 90 58 37 52 Received Heat Transfer 3055 | . 177 78 . . 963 360 291 1186 Siege Activations 4 | . . . . . . . 1 3 Total Turns 176 | . . . . . . . 36 140 Longest Duration 66 | . . . . . . . 36 66 Robots Corrupted 4 | . . . . . 2 1 1 . Combat Hostiles 4 | . . . . . 2 1 1 . Parts Fried 13 | . . . . . 5 1 7 . Impact Corruptions 2 | . . . . . 2 . . . Robots Melted . | . . . . . . . . . Combat Hostiles . | . . . . . . . . . Parts Melted 3 | . . . . . 2 1 . . Heat Transferred 3428 | . 75 150 . . 1867 679 457 200 Parts Sabotaged 2 | . . . . . . . . 2 Parts Stolen . | . . . . . . . . . Parts Stripped . | . . . . . . . . . Power Chain Reactions 8 | . . 1 . . 4 1 1 1 Missiles Intercepted . | . . . . . . . . . Alert | -11 -10 -10 -10 -9 -8 -7 -7 -6 ------- Run | Jun Mat Min Exi Min Mat Fac Gar Fac Peak Influence 2074 | . 264 402 . . 524 385 2074 2015 Initial 1088 | . . 102 . . . 185 270 1088 Average 631 | . 119 288 . . 296 213 1003 1325 Maximum Alert Level 5 | . 1 2 . . 2 1 5 5 Low Security (%) 18 | 100 60 24 . 100 29 29 . . Level 1 33 | . 39 70 . . 25 70 15 . Level 2 14 | . . 4 . . 44 . 25 . Level 3 6 | . . . . . . . 20 6 Level 4 19 | . . . . . . . 17 79 Level 5 5 | . . . . . . . 20 . High Security 2 | . . . . . . . . 12 Max Security . | . . . . . . . . . Squads Dispatched 32 | . 1 . . . 6 7 . 18 Investigation 2 | . . . . . 1 1 . . Extermination 7 | . . . . . . 5 . 2 Reinforcement 8 | . 1 . . . 5 1 . 1 Assault 12 | . . . . . . . . 12 Garrison 3 | . . . . . . . . 3 Intercept . | . . . . . . . . . Searches Triggered . | . . . . . . . . . Construction Impeded 1 | . . . . . . . . 1 Haulers Reinforced . | . . . . . . . . . Active Scanning Responses . | . . . . . . . . . Cargo Convoy Interrupts 2 | . . . . . . 1 . 1 Stealth | -11 -10 -10 -10 -9 -8 -7 -7 -6 --------- Run | Jun Mat Min Exi Min Mat Fac Gar Fac Distress Signals 13 | . . . . . 8 2 . 3 Communications Jammed . | . . . . . . . . . Distress Signals . | . . . . . . . . . Times Spotted 243 | . 18 10 . . 62 33 27 93 Peak Tracking Total 27 | . 3 3 . . 6 4 8 27 Tactical Retreats 26 | . . 2 . . 12 1 5 6 Traps | -11 -10 -10 -10 -9 -8 -7 -7 -6 ------- Run | Jun Mat Min Exi Min Mat Fac Gar Fac Traps Triggered 21 | . 1 . . . 1 5 12 2 Indirectly . | . . . . . . . . . Trap Hack Attempts 47 | . . . . . . . 47 . Triggered . | . . . . . . . . . Disarmed . | . . . . . . . . . Reprogrammed 8 | . . . . . . . 8 . Reused 4 | . . . . . . . 4 . Traps Extracted 3 | . . . . . . . 3 . Installed 9 | . . . . . . . 9 . Triggered 7 | . . 1 . . . 2 4 . Most Traps Carried 8 | . . . . . . . 8 3 Machines | -11 -10 -10 -10 -9 -8 -7 -7 -6 ---------- Run | Jun Mat Min Exi Min Mat Fac Gar Fac Machines Disabled 22 | . . 1 . . . 3 10 8 Max in Single Turn 3 | . . 1 . . . 1 1 3 Garrison Relay 4 | . . . . . . . 4 . Machines Repaired . | . . . . . . . . . Machines Sabotaged . | . . . . . . . . . Overloaded Fab Kills . | . . . . . . . . . Hacking | -11 -10 -10 -10 -9 -8 -7 -7 -6 --------- Run | Jun Mat Min Exi Min Mat Fac Gar Fac Machines Accessed 27 | . 5 . 3 . 3 9 3 4 Terminals 17 | . 4 . . . 3 5 3 2 Fabricators . | . . . . . . . . . Repair Stations 2 | . 1 . . . . . . 1 Recycling Units . | . . . . . . . . . Scanalyzers 2 | . . . . . . 2 . . Garrison Access 3 | . . . . . . 2 . 1 Total Hacks 106 | . 17 . 40 . 12 22 7 8 Successful 70 | . 10 . 40 . 6 10 1 3 Failed 36 | . 7 . . . 6 12 6 5 Catastrophic 5 | . . . . . . 2 1 2 Database Lockouts . | . . . . . . . . . Manual 39 | . 13 . . . 11 8 1 6 Terminals 53 | . 15 . . . 12 14 7 5 Fabricators . | . . . . . . . . . Repair Stations 3 | . 2 . . . . . . 1 Recycling Units . | . . . . . . . . . Scanalyzers 5 | . . . . . . 5 . . Garrison Access 5 | . . . . . . 3 . 2 Terminal Hacks 49 | . 2 . 40 . 2 3 1 1 Record 40 | . . . 40 . . . . . Emergency Access Points 1 | . . . . . . . 1 . Terminal Index 3 | . 1 . . . . 1 . 1 Unreport Threat 1 | . . . . . 1 . . . Locate Traps 4 | . 1 . . . 1 2 . . Fabricator Hacks . | . . . . . . . . . Repair Station Hacks 1 | . 1 . . . . . . . Scan Component 1 | . 1 . . . . . . . Recycling Unit Hacks . | . . . . . . . . . Scanalyzer 3 | . . . . . . 3 . . Insert Component 2 | . . . . . . 2 . . Analyze 1 | . . . . . . 1 . . Garrison Access Hacks 1 | . . . . . . 1 . . Unlock Access 1 | . . . . . . 1 . . Unauthorized Hacks 16 | . 7 . . . 4 3 . 2 Terminals 16 | . 7 . . . 4 3 . 2 Track 5 | . 3 . . . 1 1 . . Botnet 9 | . 4 . . . 2 1 . 2 Operators 2 | . . . . . 1 1 . . Fabricators . | . . . . . . . . . Repair Stations . | . . . . . . . . . Recycling Units . | . . . . . . . . . Scanalyzers . | . . . . . . . . . Garrison Access . | . . . . . . . . . Data Cores Recovered 1 | . 1 . . . . . . . Used . | . . . . . . . . . Hacking Detections 23 | . 5 . . . 3 8 3 4 Full Trace Events 2 | . . . . . . 1 1 . Feedback Events 1 | . . . . . . 1 . . Hackware Fried 1 | . . . . . . 1 . . Feedback Blocked . | . . . . . . . . . Robot Schematics Acquired . | . . . . . . . . . Robots Built . | . . . . . . . . . Authchips . | . . . . . . . . . Time . | . . . . . . . . . Total Robot Build Rating . | . . . . . . . . . Part Schematics Acquired 1 | . . . . . . 1 . . Parts Built . | . . . . . . . . . Authchips . | . . . . . . . . . Time . | . . . . . . . . . Total Part Build Rating . | . . . . . . . . . Parts Repaired . | . . . . . . . . . Time . | . . . . . . . . . Parts Recycled . | . . . . . . . . . Recycled Matter . | . . . . . . . . . Retrieved Matter . | . . . . . . . . . Retrieved Components . | . . . . . . . . . Parts Scanalyzed 2 | . . . . . . 2 . . Part Schematics Acquired 1 | . . . . . . 1 . . Parts Damaged . | . . . . . . . . . Bothacking | -11 -10 -10 -10 -9 -8 -7 -7 -6 ------------ Run | Jun Mat Min Exi Min Mat Fac Gar Fac Used RIF Installer . | . . . . . . . . . Robots Hacked . | . . . . . . . . . Non-combat . | . . . . . . . . . Combat . | . . . . . . . . . Robot Hacks Applied . | . . . . . . . . . Relay Couplers Released 19 | . . . . . . 3 16 . Machine Destruction 16 | . . . . . . . 16 . Programmers 3 | . . . . . . 3 . . Fabnet Peak Effective % . | . . . . . . . . . Robots Rewired 3 | . . . . . . . 3 . Allies Hacked . | . . . . . . . . . Hacks Repelled . | . . . . . . . . . Allies | -11 -10 -10 -10 -9 -8 -7 -7 -6 -------- Run | Jun Mat Min Exi Min Mat Fac Gar Fac Total Allies 7 | . . 1 . . . 3 3 . Largest Group 3 | . . 1 . . . 3 3 . Highest-Rated Group 93 | . . 31 . . . 93 82 . Highest-Rated Ally 31 | . . 31 . . . 31 31 . Total Orders . | . . . . . . . . . Ally Attacks 33 | . . 12 . . . 13 8 . Total Damage 614 | . . 146 . . . 260 208 . Kills 7 | . . 3 . . . 3 1 . Allies Corrupted 4 | . . . . . . 2 2 . Allies Melted . | . . . . . . . . . Intel | -11 -10 -10 -10 -9 -8 -7 -7 -6 ------- Run | Jun Mat Min Exi Min Mat Fac Gar Fac Robot Analysis Total . | . . . . . . . . . Derelict Logs Recovered . | . . . . . . . . . Drone Launches . | . . . . . . . . . Drone Recoveries . | . . . . . . . . . Exploration | -11 -10 -10 -10 -9 -8 -7 -7 -6 ------------- Run | Jun Mat Min Exi Min Mat Fac Gar Fac Turns Passed 11878 | 48 777 405 568 35 1866 3177 2890 2112 Spaces Moved 6430 | 40 623 294 523 30 881 1442 1597 1000 Core 48 | 2 . . . . . . . 46 Treads 8 | . . . . . 5 . 3 . Legs . | . . . . . . . . . Wheels 6374 | 38 623 294 523 30 876 1442 1594 954 Hover . | . . . . . . . . . Flight . | . . . . . . . . . Fastest Speed 50 | 50 90 95 105 120 95 105 135 50 Average Speed 143 | 88 99 102 106 120 137 183 145 146 Slowest Speed 360 | 100 105 105 120 120 240 195 360 250 Overloaded Moves . | . . . . . . . . . Propulsion Burnouts . | . . . . . . . . . Robots Hopped . | . . . . . . . . . Cave-ins Triggered . | . . . . . . . . . Exploration Rate (%) 52 | 3 93 58 90 13 58 38 96 26 Regions Visited 8 Branch Regions 3 Pre-discovered Areas 1 | . . . 1 . . . . . Known Exits Taken 1 | . . . . . . 1 . . Unknown Exits Taken 6 | 1 1 1 1 1 1 . . . Scrap Searched 1 | . . 1 . . . . . . Spaces Dug 94 | . . 1 . . 5 31 37 20 Terrain Destroyed 377 | . . 21 . . 20 69 89 178 Melee 41 | . . . . . 4 30 . 7 Projectile 23 | . . 2 . . 1 8 8 4 AOE 311 | . . 19 . . 15 30 81 166 Terrain Rammed . | . . . . . . . . . Walls Destroyed . | . . . . . . . . . Machines Disabled . | . . . . . . . . . Actions | -11 -10 -10 -10 -9 -8 -7 -7 -6 --------- Run | Jun Mat Min Exi Min Mat Fac Gar Fac Total 8188 | 49 719 350 536 29 1301 1791 2016 1397 Wait 412 | . . 18 . . 137 58 67 132 Move 6423 | 39 622 293 522 29 880 1442 1596 1000 Hop . | . . . . . . . . . Pick Up 201 | 4 21 1 8 . 54 47 47 19 Fast Attach 32 | 6 4 . . . 1 6 8 7 Attach 83 | . 2 1 . . 27 9 18 26 Detach 30 | . 4 . . . 1 5 10 10 Swap 157 | . 6 6 2 . 42 35 30 36 Drop 137 | . 14 3 4 . 21 52 21 22 Fire 468 | . 46 28 . . 112 69 81 132 Melee 108 | . . . . . 26 44 25 13 Ram . | . . . . . . . . . Kick . | . . . . . . . . . Crush . | . . . . . . . . . Escape Stasis 80 | . . . . . . 24 56 . Rewire 1 | . . . . . . . 1 . Trap 56 | . . . . . . . 56 . Miscellaneous . | . . . . . . . . . Route ------- -11/Junkyard -10/Materials (discovered 4 exits: [*Mat x3] / [*Min]) -10/Mines (discovered 2 exits: [*Mat] / *Exi) -10/Exiles (discovered 2 exits: [*Min x2]) -9/Mines -8/Materials -7/Factory (discovered 2 exits: *Low / Gar) -7/Garrison (discovered 3 exits: *Fac x3) -6/Factory History --------- Turn | Location | Event 16 | -11/Junkyard | Discovered new exit (range 16) 49 | -11/Junkyard | Entered Materials 115 | -10/Materials | Discovered new exit (range 4) 277 | -10/Materials | Discovered new exit (range 5) 314 | -10/Materials | Build established: Mutant 511 | -10/Materials | Destroyed 8 combat bots 525 | -10/Materials | Discovered new exit (range 13) 650 | -10/Materials | Discovered new exit (range 7) 826 | -10/Materials | Entered Mines 829 | -10/Mines | Received a Mining Laser from a helpful Derelict 921 | -10/Mines | Core integrity fell below 50% 1025 | -10/Mines | Discovered new exit (range 8) 1117 | -10/Mines | Assembled infested the area 1227 | -10/Mines | Discovered new exit (range 5) 1231 | -10/Mines | Entered Exiles 1246 | -10/Exiles | Discovered new exit (range 15) 1285 | -10/Exiles | Met 8R-AWN 1302 | -10/Exiles | Met EX-HEX 1379 | -10/Exiles | Met EX-DEC 1396 | -10/Exiles | Visited The Gauntlet 1558 | -10/Exiles | Met EX-BIN 1672 | -10/Exiles | Learned location of Zion (-7) 1787 | -10/Exiles | Discovered new exit (range 11) 1799 | -10/Exiles | Entered Mines 1823 | -9/Mines | Discovered new exit (range 7) 1834 | -9/Mines | Entered Materials 1834 | -8/Materials | Evolved 4 slots: Propulsion x1, Utility x3 2418 | -8/Materials | Lost 3 parts (1p1u1w) 2432 | -8/Materials | Discovered new exit (range 4) 2458 | -8/Materials | Build established: Scavenger-Mutant 2626 | -8/Materials | Lost 3 parts (2n1u) 2690 | -8/Materials | Core integrity fell below 50% 2735 | -8/Materials | Lost 3 parts (1p2w) 2849 | -8/Materials | Core integrity fell below 20% 2882 | -8/Materials | Lost 4 parts (2n2w) 2937 | -8/Materials | Lost 3 parts (1n1u1w) 3123 | -8/Materials | Build established: Hauler-Mutant 3700 | -8/Materials | Entered Factory 3700 | -7/Factory | Evolved 2 slots: Utility x2 4031 | -7/Factory | Hacking Suite fried by hacking feedback 4314 | -7/Factory | Allied Derelicts emerged from ambush trap array 4521 | -7/Factory | P-60 Hacker assimilated allied 0J-1HD(g) 5354 | -7/Factory | Cargo convoy interrupted 5719 | -7/Factory | Discovered new exit (range 6) 5728 | -7/Factory | Identified exit to Lower Caves 6856 | -7/Factory | Found Prototype Launcher 6877 | -7/Factory | Identified exit to Garrison 6877 | -7/Factory | Entered Garrison 6992 | -7/Garrison | Identified Rocket Array 7325 | -7/Garrison | Triggered checkpoint 7384 | -7/Garrison | Destroyed 9 combat bots 7388 | -7/Garrison | Lost 12 parts (3n5u4w) 7530 | -7/Garrison | Discovered new exit (range 10) 7612 | -7/Garrison | Triggered checkpoint 7672 | -7/Garrison | Garrison Relay disabled 8158 | -7/Garrison | Discovered new exit (range 10) 8169 | -7/Garrison | Identified exit to Factory 8202 | -7/Garrison | Triggered checkpoint 8272 | -7/Garrison | Destroyed 7 combat bots 8296 | -7/Garrison | Garrison Relay disabled 8648 | -7/Garrison | Triggered checkpoint 8789 | -7/Garrison | Discovered exit to Factory (range 10) 9074 | -7/Garrison | Triggered checkpoint 9170 | -7/Garrison | Garrison Relay disabled 9282 | -7/Garrison | Spotted B-75 Beast 9339 | -7/Garrison | Core integrity fell below 50% 9349 | -7/Garrison | Destroyed B-75 Beast 9366 | -7/Garrison | Lost 4 parts (1n2u1w) 9708 | -7/Garrison | Garrison Relay disabled 9767 | -7/Garrison | Entered Factory 9767 | -6/Factory | Evolved 2 slots: Utility x2 10117 | -6/Factory | First assault squad dispatched 10293 | -6/Factory | Lost 3 parts (1n1u1w) 10367 | -6/Factory | Lost 3 parts (1p1u1w) 11617 | -6/Factory | High security lockdown imminent 11623 | -6/Factory | Garrison activated, responded to threat 11684 | -6/Factory | Lost 4 parts (1p1n1u1w) 11697 | -6/Factory | High security lockdown engaged 11826 | -6/Factory | Core integrity fell below 50% 11850 | -6/Factory | Cargo convoy interrupted 11863 | -6/Factory | Core integrity fell below 20% 11879 | -6/Factory | Destroyed by H-66 Slayer with Gauss Rifle Last Messages --------------- 11854_ Dropped Cargo Storage Unit. 11855_ Dropped Hcp. Matter Pod. 11855_ Slug penetrates Construction Platform. 11855_ Dropped Hardcell Cannon. 11856_ Dropped Energy Well. 11856_ Penetrated by Slug. 11856_ Adv. Signal Interpreter destroyed. 11856_ Adv. Targeting Computer destroyed. 11857_ Slug penetrates Wall. 11857_ Fabricator disabled. 11857_ Construction Platform disabled. 11858_ Slug penetrates Wall. 11860_ Penetrated by Slug. 11861_ Slug penetrates Construction Platform. 11862_ Construction Platform disabled. 11862_ Penetrated by Slug. 11869_ Slug penetrates Nuclear Reactor. 11870_ Penetrated by Slug. 11873_ System corrupted: Matter fused (-10). 11879_ Slug penetrates Assembly Bed. Map ----- +----------------------------------------------------+ | | | | | | | | | | | | | | | | | | | ?????????????????????######???????#######????????? | | ?????????????????????# ?????? ! #????????? | | ?????????????????????# ???# = #????????? | | ?????????????????????# """# #????????? | | ?????????????????????# """# """ #????????? | | ?????????????????????# # """ """#????????? | | ?????????????????????# """# """ R"#????????? | | ###??????????????????# [ """# """?????????? | | #??????????????????# """#?? ???????????? | | #??????????????????# #####+####?????????? | | #??????????????????#######+### #?????????? | | #?????????????????????# #######+### | | #?????????????????????# s # | | !#?????????????????????# """" # | | #?????????????????????# """" * # | | #?????????????????????# """" #+# | | #?????????????????????#@ """" """ #?? | | ##??????????????????????# """" """ #?? | | ????????????????????????# """" """ = #?? | | ????????????????????????+ #?? | | ????????????????????????# hh #?? | | ????????????????????????# h """"""" +?? | | ????????????????????????# """"""" #?? | | ????????????????????????#+#######Y """"""" #?? | | ????????????????????????????????+ """" "" #?? | | ????????????????????????????????# #?? | | ?????????#####??????????????????# h #?? | | ??????#### ##???????########## +?? | | #######"" ???????# % ######?? | | "%" =%!########=% #??????? | | #= %*[*=%[!![/=%% %= #??????? | | # %%%!########! ######+####???? | | """"" # ==! ???????#! ! # ! ]#???? | | """"" [ ????????## """ ]]/!#] #???? | | """"" ?????????# """"!!/!# "" !#???? | | """"" #?????????# """"=]=]/ " "" #???? | | #?????????# """"=%!/# " """ #???? | | """"" #?????????# """"!!!!# "F """ #???? | | """"" # ##????????# """" !]]# "" """ #???? | | """"" + " "########## """" ""# #???? | | """"" # " # ## ""###########???? | +----------------------------------------------------+ Best States ------------- Heat Dissipation 51 Energy Generation 21 Energy Capacity 515 Matter Stores 700 Matter Capacity 700 Sight Range 16 Robot Scan Range 16 Terrain Scan Density 10 Jamming Range 12 Additional Mass Support 9 Armor Coverage 1200 Evasion (%) 50 Targeting Accuracy 16 Recoil Reduction 2 Offensive Hacking 20 Trap Extractor Capacity 6 Item Schematics ----------------- Humpback | -7/Factory | Scanalyzed Robot Schematics ------------------ None Fabricated ------------ Nothing Alien Tech Used ----------------- None Achievements -------------- None Challenges ------------ None Game ------ Seed ZioniteThrusterAirjet Manual? 0 Play Time 01:54:47 Cumulative 1224.6 hours Start 2023.03.05 @ 00:36:03 End 2023.03.05 @ 02:37:43 Sessions 3 Manual Loads 0 Difficulty Rogue Special Mode None Game No. 449 Rogue 449 Adventurer 0 Explorer 0 Win Type - Total 26 Types 13/2/7/0/0/0/4/0/0 Lore% 89 Gallery% 90 Achievement% 85 Wizard Run 0 Options --------- ASCII 0 Keyboard 0 Movement Vi Keybinds 0 Fullscreen 0 Font 12/Crisp Map View 76x50 Tactical HUD 1 Map Filters NONE Filters NONE Steam 1 RUN: b6920adc-2d66-4811-87a5-2292ea1fdc91